fUSD/lending_fUSD_20250711
["ID","MTS","AMOUNT","RATE_DAILY","PERIOD"]
[371038748,1752193838618,-741.93507836,0.000387,120]
[371038749,1752193838628,-165.46496463,0.00038725,2]
[371038750,1752193838637,-94.26530268,0.00038785,30]
[371038751,1752193838652,-58.73469732,0.00038785,30]
[371038752,1752193838661,-153.0,0.00038792,30]
[371038753,1752193838670,-153.0,0.00038796,30]
[371038754,1752193838680,-153.0,0.00038798,30]
[371038755,1752193838689,-213.64873991,0.00038799,16]
[371038756,1752193838712,-1588.54763809,0.00038799,16]
[371038757,1752193838722,-1772.96836073,0.000388,120]
[371038758,1752193838732,-1789.172619,0.000388,120]
[371038759,1752193838743,-844.92616547,0.000388,120]
[371038760,1752193838752,-153.0,0.00038803,30]
[371038761,1752193838761,-92.63730901,0.00038805,30]
[371038762,1752193838772,-60.36269099,0.00038805,30]
[371038763,1752193838782,-300.94,0.00038818,2]
[371038764,1752193838791,-512.0,0.0003886,18]
[371038765,1752193838800,-168.01,0.00038931,2]
[371038766,1752193838809,-175.52,0.00038931,2]
[371038767,1752193838818,-305.96,0.00039045,2]
[371038768,1752193838827,-1715.33039114,0.000392,30]
[371038769,1752193838841,-535.74875138,0.000392,30]
[371038770,1752193838852,-1244.76747702,0.000392,30]
[371038771,1752193838863,-618.18886431,0.000392,30]
[371038772,1752193838874,-389.87050797,0.000392,30]
[371038773,1752193838889,-592.32558935,0.000392,30]
[371038777,1752193840741,-266.77427043,0.000392,30]
[371038778,1752193840752,-5482.18258923,0.000392,30]
[371038779,1752193840762,-709.44,0.00039208,2]
[371038780,1752193840771,-173.59,0.0003934,2]
[371038781,1752193840780,-500.0,0.00039452,7]
[371038782,1752193840789,-500.0,0.00039534,2]
[371038783,1752193840798,-239.59373,0.0003963,2]
[371038784,1752193840808,-200.0,0.000397,18]
[371038785,1752193840817,-4677.9488999,0.000397,22]
[371038786,1752193840826,-1000.0,0.00039726,120]
[371038787,1752193840837,-458.31,0.00039726,120]
[371038788,1752193840847,-239.59372,0.00039729,2]
[371038789,1752193840856,-4000.0,0.00039784,8]
[371038790,1752193840866,-160.0,0.00039851,2]
[371038791,1752193840875,-837.44822953,0.00039853,2]
[371038792,1752193840884,-556.98247296,0.0003987,15]
[371038793,1752193840893,-3120.11490238,0.00039872,12]
[371038794,1752193840902,-556.98247287,0.00039873,15]
[371038795,1752193840912,-150.0,0.00039876,2]
[371038796,1752193840921,-556.98247287,0.00039877,15]
[371038797,1752193840931,-174.61919141,0.00039879,3]
[371038798,1752193840940,-4031.856,0.00039879,3]
[371038799,1752193840950,-268.02930783,0.00039879,3]
[371038800,1752193840959,-4181.034672,0.00039879,3]
[371038801,1752193840969,-2961.06765978,0.00039879,3]
[371038802,1752193840979,-207.4,0.00039879,3]
[371038803,1752193840988,-300.0,0.00039879,3]
[371038804,1752193840997,-214.8,0.00039879,3]
[371038805,1752193841006,-151.0,0.00039879,3]
[371038806,1752193841016,-300.0,0.00039879,3]
[371038807,1752193841026,-300.0,0.00039879,3]
[371038808,1752193841035,-300.0,0.00039879,3]
[371038809,1752193841045,-300.0,0.00039879,3]
[371038810,1752193841054,-300.0,0.00039879,3]
[371038811,1752193841064,-300.0,0.00039879,3]
[371038812,1752193841073,-300.0,0.00039879,3]
[371038813,1752193841082,-300.0,0.00039879,3]
[371038814,1752193841096,-300.0,0.00039879,3]
[371038815,1752193841105,-300.0,0.00039879,3]
[371038816,1752193841115,-300.0,0.00039879,3]
[371038817,1752193841125,-274.70266548,0.00039879,3]
[371038818,1752193841135,-300.0,0.00039879,3]
[371038819,1752193841144,-300.0,0.00039879,3]
[371038820,1752193841154,-300.0,0.00039879,3]
[371038821,1752193841163,-300.0,0.00039879,3]
[371038822,1752193841173,-361.63485225,0.00039879,3]
[371038823,1752193841183,-210.4254034,0.00039879,3]
[371038824,1752193841192,-200.0,0.0003988,2]
[371038825,1752193841201,-556.98247287,0.0003988,15]
[371038826,1752193841211,-4861.534,0.0003988,2]
[371038827,1752193841220,-556.98247287,0.00039883,15]
[371038828,1752193841231,-556.98247287,0.00039887,15]
[371038829,1752193841240,-243.67078257,0.00039889,31]
[371038830,1752193841250,-187.79084167,0.00039889,31]
[371038831,1752193841260,-288.16387056,0.00039889,31]
[371038832,1752193841270,-500.0,0.00039889,31]
[371038833,1752193841279,-339.63668248,0.00039889,31]
[371038834,1752193841288,-556.98247287,0.0003989,15]
[371038835,1752193841298,-343.60177782,0.0003989,2]
[371038836,1752193841309,-5000.0,0.0003989,2]
[371038837,1752193841318,-556.98247287,0.00039893,15]
[371038838,1752193841328,-556.98247287,0.00039897,15]
[371038839,1752193841338,-27423.8719299,0.000399,3]
[371038840,1752193841348,-3494.66928125,0.000399,60]
[371038841,1752193841359,-164.19140861,0.000399,2]
[371038842,1752193841368,-556.98247287,0.000399,15]
[371038843,1752193841377,-285.7110981,0.000399,2]
[371038844,1752193841386,-349.4215758,0.000399,2]
[371038845,1752193841395,-3000.0,0.000399,30]
[371038846,1752193841404,-847.51129056,0.000399,2]
[371038847,1752193841413,-24957.24397484,0.000399,2]
[371038848,1752193841422,-4919.64049092,0.000399,2]
[371038849,1752193841431,-219.94975577,0.000399,8]
[371038850,1752193841440,-165.46496463,0.000399,2]
[371038851,1752193841449,-7431.69946901,0.000399,2]
[371038852,1752193841459,-303.14,0.0003991,2]
[371038853,1752193841468,-168.26,0.00039922,2]
[371038854,1752193841477,-150.0,0.00039944,2]
[371038855,1752193841487,-4000.0,0.0003996,15]
[371038856,1752193841496,-27423.8719299,0.0003997,3]
[371038857,1752193841506,-27423.8719299,0.0003997,3]
[371038858,1752193841518,-27423.8719299,0.0003998,3]
[371038859,1752193841526,-151.0,0.0003998,14]
[371038860,1752193841535,-230.388403,0.0003998,14]
[371038861,1752193841544,-151.0,0.0003998,14]
[371038862,1752193841554,-151.0,0.0003998,2]
[371038863,1752193841563,-151.0,0.0003998,14]
[371038864,1752193841572,-54.76619455,0.0003998,14]
[371038865,1752193841598,-96.23380545,0.0003998,14]
[371038866,1752193841608,-151.0,0.0003998,14]
[371038867,1752193841617,-151.0,0.0003998,14]
[371038868,1752193841626,-151.0,0.0003998,14]
[371038869,1752193841635,-151.0,0.0003998,14]
[371038870,1752193841645,-151.0,0.0003998,14]
[371038871,1752193841654,-151.0,0.0003998,14]
[371038872,1752193841663,-151.0,0.0003998,14]
[371038873,1752193841672,-151.0,0.0003998,14]
[371038874,1752193841681,-151.0,0.0003998,14]
[371038875,1752193841690,-151.0,0.0003998,14]
[371038876,1752193841699,-151.0,0.0003998,14]
[371038877,1752193841708,-151.0,0.0003998,14]
[371038878,1752193841717,-1847.55672567,0.0003998,3]
[371038879,1752193841729,-507.42913,0.0003998,3]
[371038888,1752193843377,-151.0,0.0003998,14]
[371038890,1752193843386,-229.13821568,0.0003998,3]
[371038893,1752193843398,-244230.72329765,0.0003998,3]
[371038895,1752193843409,-167985.07793946,0.0003998,3]
[371038899,1752193843486,-52.41627948,0.0003998,3]
[371038900,1752193843497,-34667.63299997,0.0003998,3]
[371038901,1752193843707,-1303.92,0.0003998,3]
[371038902,1752193843761,-2719.64120537,0.0003998,3]
[371038903,1752193843818,-8179.17060872,0.0003998,3]
[371038904,1752193843828,-153.06,0.0003998,2]
[371038905,1752193843837,-2901.68504913,0.00039982,26]
[371038906,1752193843848,-786.19038712,0.00039982,26]
[371038931,1752193844469,150.0,0.00025,2]
[371038932,1752193844939,150.0,0.0002541,2]
[371038933,1752193845442,150.0,0.0002582,2]
[371038934,1752193845986,150.0,0.0002622,2]
[371038936,1752193846329,-700.18721507,0.00039982,26]
[371038937,1752193846386,-479.21731447,0.00039982,26]
[371038938,1752193846443,-307.89381254,0.00039982,26]
[371038939,1752193846455,-395.55863856,0.00039982,26]
[371038940,1752193846500,-51946.58713483,0.00039982,26]
[371038941,1752193846513,-351.44149051,0.00039982,2]
[371038942,1752193846527,-27423.8719299,0.00039982,3]
[371038943,1752193846536,-15350.5613595,0.00039982,3]
[371038944,1752193846545,-150.0,0.00039983,2]
[371038945,1752193846555,-151.0,0.0003999,14]
[371038946,1752193846565,-151.0,0.0003999,14]
[371038947,1752193846574,-151.0,0.0003999,14]
[371038948,1752193846583,-151.0,0.0003999,14]
[371038949,1752193846595,-151.0,0.0003999,14]
[371038950,1752193846605,-151.666214,0.0003999,14]
[371038951,1752193846615,-151.0,0.0003999,14]
[371038952,1752193846624,-151.0,0.0003999,14]
[371038953,1752193846634,-151.0,0.0003999,14]
[371038954,1752193846643,-151.0,0.0003999,14]
[371038955,1752193846653,-151.0,0.0003999,14]
[371038956,1752193846662,-194.759906,0.0003999,14]
[371038957,1752193846671,-151.0,0.0003999,14]
[371038958,1752193846681,-151.0,0.0003999,14]
[371038959,1752193846690,-151.0,0.0003999,14]
[371038960,1752193846699,-151.0,0.0003999,14]
[371038961,1752193846709,-155.955285,0.0003999,14]
[371038962,1752193846718,-151.0,0.0003999,14]
[371038963,1752193846727,-151.0,0.0003999,14]
[371038965,1752193846736,-151.0,0.0003999,14]
[371038967,1752193846745,-151.0,0.0003999,14]
[371038969,1752193846755,-151.0,0.0003999,14]
[371038971,1752193846764,-151.0,0.0003999,14]
[371038973,1752193846774,-151.0,0.0003999,14]
[371038974,1752193846783,-151.0,0.0003999,14]
[371038977,1752193846849,-151.0,0.0003999,14]
[371038978,1752193847002,-151.0,0.0003999,14]
[371038979,1752193847011,-151.0,0.0003999,14]
[371038980,1752193847020,-151.0,0.0003999,14]
[371038981,1752193847029,-151.0,0.0003999,14]
[371038982,1752193847039,-140087.87579641,0.0003999,3]
[371038983,1752193847050,-2695.73654662,0.0003999,3]
[371038984,1752193847074,-2185.76280001,0.0003999,3]
[371038985,1752193847085,-1655.25765325,0.0003999,3]
[371038986,1752193847098,-10648.81583089,0.0003999,3]
[371038987,1752193847110,-62117.52681182,0.0003999,3]
[371038988,1752193847120,-151.0,0.0003999,14]
[371038989,1752193847129,-5661.16772997,0.0003999,3]
[371038990,1752193847148,-989.76333446,0.0003999,3]
[371038991,1752193847258,150.0,0.0002663,2]
[371038992,1752193847628,150.0,0.0002704,2]
[371038997,1752194281117,300.0,0.00030027,120]
[371038998,1752194488454,323.2608008,0.00030136,120]
[371039000,1752194625717,154.15,0.00013699,2]
[371039002,1752194641640,300.0,0.00027397,120]
[371039003,1752194748130,-180.23259663,0.00024558,2]
[371039004,1752194748151,-154.15,0.00024907,2]
[371039005,1752194748172,-150.0,0.00025,2]
[371039006,1752194748193,-190.0,0.0002541,2]
[371039007,1752194748213,-4304.9385809,0.00027134,2]
[371039009,1752194830083,-1376.20061303,0.00027134,2]
[371039010,1752194838131,-1173.66299894,0.00027134,2]
[371039011,1752194838152,-600.0,0.00027397,2]
[371039012,1752194838176,-600.0,0.00027397,2]
[371039013,1752194838197,-68.51105741,0.00027397,2]
[371039014,1752194844077,-365.97177388,0.00027297,2]
[371039015,1752194844104,-194.34584385,0.00027397,2]
[371039017,1752194946108,-337.14309874,0.00027397,2]
[371039018,1752194946131,-600.0,0.00027397,2]
[371039019,1752194946153,-600.0,0.00027397,2]
[371039020,1752194946174,-600.0,0.00027397,2]
[371039021,1752194946196,-237.98869433,0.00027496,2]
[371039022,1752194960091,-62.01130567,0.00027496,2]
[371039023,1752194960114,-200.0,0.00027496,15]
[371039024,1752194960136,-600.0,0.00027497,2]
[371039025,1752194960158,-600.0,0.00027497,2]
[371039026,1752194960180,-600.0,0.00027497,2]
[371039027,1752194960201,-341.70752995,0.00027497,2]
[371039033,1752195031450,-542.93073549,0.00027497,2]
[371039034,1752195031461,-4.32780153,0.00028662,2]
[371039035,1752195031504,-461.40481356,0.00028662,2]
[371039036,1752195031514,-190.86,0.00029394,2]
[371039037,1752195031525,-150.0,0.000301,2]
[371039038,1752195031535,-193.0,0.00030899,3]
[371039039,1752195031545,-756.275,0.00031135,28]
[371039040,1752195031555,-160.0,0.00031934,2]
[371039041,1752195031565,-154.53,0.00032119,2]
[371039042,1752195031575,-400.0,0.00033023,2]
[371039043,1752195031586,-311.0,0.00033023,30]
[371039044,1752195031596,-1572.43018644,0.00033024,2]
[371039045,1752195031608,-355.86,0.00033024,2]
[371039046,1752195031619,-3071.70981356,0.00033024,2]
[371039047,1752195031629,-1000.0,0.00034056,2]
[371039048,1752195031638,-855.20382003,0.00034056,2]
[371039049,1752195031658,-144.79617997,0.00034056,2]
[371039050,1752195031667,-1000.0,0.00034056,2]
[371039051,1752195031677,-1000.0,0.00034056,2]
[371039052,1752195031687,-1000.0,0.00034056,2]
[371039053,1752195031697,-1000.0,0.00034056,2]
[371039054,1752195031707,-1000.0,0.00034056,2]
[371039055,1752195031716,-1000.0,0.00034056,2]
[371039056,1752195031726,-1000.0,0.00034056,2]
[371039057,1752195031736,-1000.0,0.00034056,2]
[371039058,1752195031746,-1000.0,0.00034056,2]
[371039059,1752195031755,-1000.0,0.00034056,2]
[371039060,1752195031764,-1000.0,0.00034056,2]
[371039061,1752195031774,-1000.0,0.00034056,2]
[371039062,1752195031783,-1000.0,0.00034056,2]
[371039063,1752195031793,-1000.0,0.00034056,2]
[371039064,1752195031802,-1000.0,0.00034056,2]
[371039065,1752195031811,-1000.0,0.00034056,2]
[371039066,1752195031821,-1000.0,0.00034056,2]
[371039067,1752195031830,-1011.43704805,0.00034056,2]
[371039068,1752195031840,-2057.274,0.00034076,2]
[371039069,1752195031850,-1284.0,0.00034076,2]
[371039070,1752195031859,-1682.0,0.00034076,2]
[371039071,1752195031870,-417.941,0.00034076,2]
[371039072,1752195031884,-176.97,0.00034295,2]
[371039074,1752195031893,-1168.0,0.00035,60]
[371039076,1752195031903,-151.0,0.00035222,6]
[371039077,1752195031914,-560.0,0.0003548,2]
[371039078,1752195031924,-235.42,0.000356,7]
[371039079,1752195031933,-435.36,0.000358,2]
[371039081,1752195031943,-1739.0,0.000359,2]
[371039082,1752195031953,-154.15,0.00036115,2]
[371039084,1752195031964,-500.0,0.00036164,7]
[371039086,1752195031974,-151.0,0.00036416,7]
[371039088,1752195031983,-666.0,0.00036667,2]
[371039090,1752195031992,-466.0,0.00036668,20]
[371039092,1752195032002,-164.6,0.00036773,2]
[371039094,1752195032011,-232.12,0.00036806,120]
[371039096,1752195032020,-177.17,0.00036812,2]
[371039098,1752195032030,-512.0,0.0003686,2]
[371039100,1752195032041,-5000.0,0.00036933,2]
[371039102,1752195032051,-151.39,0.00036934,2]
[371039104,1752195032060,-1000.0,0.00036999,2]
[371039106,1752195032070,-435.36,0.00037,2]
[371039108,1752195032079,-466.0,0.00037046,20]
[371039110,1752195032090,-168.0,0.00037111,2]
[371039112,1752195032099,-500.0,0.0003712,2]
[371039114,1752195032109,-466.0,0.00037424,20]
[371039116,1752195032118,-163.39,0.00037505,2]
[371039117,1752195032127,-300.0,0.00037532,85]
[371039119,1752195032137,-1644.79478659,0.00037533,120]
[371039121,1752195032146,-151.0,0.00037611,15]
[371039123,1752195032157,-210.4254034,0.00037747,2]
[371039125,1752195032167,-302.0,0.00037771,2]
[371039127,1752195032176,-304.06,0.00037771,2]
[371039129,1752195032186,-303.54,0.00037771,2]
[371039131,1752195032195,-303.44,0.00037771,2]
[371039133,1752195032204,-303.72,0.00037771,2]
[371039135,1752195032213,-302.04,0.00037771,2]
[371039137,1752195032222,-303.99,0.00037771,2]
[371039139,1752195032232,-303.22,0.00037771,2]
[371039141,1752195032241,-301.27,0.00037771,2]
[371039143,1752195032251,-303.24,0.00037771,2]
[371039145,1752195032261,-305.31,0.00037771,2]
[371039146,1752195032271,-435.36,0.000378,2]
[371039148,1752195032280,-466.0,0.00037802,20]
[371039150,1752195032289,-359.10868402,0.00037802,20]
[371039152,1752195032299,-635.97267962,0.00037808,7]
[371039154,1752195032308,-726.78,0.00037916,2]
[371039156,1752195032317,-726.78,0.00037936,2]
[371039158,1752195032326,-726.78,0.00037956,2]
[371039160,1752195032337,-726.78,0.00037976,2]
[371039162,1752195032347,-726.78,0.00037996,2]
[371039164,1752195032356,-726.78,0.00038016,2]
[371039166,1752195032366,-726.78,0.00038036,2]
[371039168,1752195032376,-726.78,0.00038056,2]
[371039170,1752195032385,-726.78,0.00038076,2]
[371039172,1752195032395,-512.0,0.00038078,5]
[371039174,1752195032404,-726.78,0.00038096,2]
[371039176,1752195032414,-726.78,0.00038116,2]
[371039178,1752195032423,-647.0,0.00038121,2]
[371039180,1752195032433,-726.78,0.00038135,2]
[371039182,1752195032442,-726.78,0.00038155,2]
[371039184,1752195032452,-726.78,0.00038175,2]
[371039186,1752195032461,-466.0,0.0003818,20]
[371039188,1752195032471,-726.78,0.00038195,2]
[371039189,1752195032480,-726.78,0.00038215,2]
[371039191,1752195032490,-301.38,0.00038231,2]
[371039193,1752195032499,-726.78,0.00038235,2]
[371039195,1752195032509,-726.78,0.00038255,2]
[371039197,1752195032518,-726.78,0.00038275,2]
[371039199,1752195032528,-726.78,0.00038295,2]
[371039201,1752195032537,-154.72,0.00038338,2]
[371039203,1752195032547,-435.36,0.000385,2]
[371039205,1752195032556,-1000.0,0.000385,7]
[371039207,1752195032566,-240.31422203,0.00038533,2]
[371039209,1752195032575,-154.53,0.00038543,2]
[371039211,1752195032584,-466.0,0.00038558,20]
[371039213,1752195032594,-197.29,0.00038601,2]
[371039215,1752195032603,-164.6,0.00038612,2]
[371039216,1752195032613,-1427.318959,0.00038783,16]
[371039218,1752195032623,-435.36,0.000388,2]
[371039220,1752195032634,-151.0,0.00038805,15]
[371039223,1752195032644,-709.0,0.000389,2]
[371039225,1752195032653,-466.0,0.00038936,20]
[371039226,1752195032663,-1000.0,0.00039,7]
[371039228,1752195032672,-3000.0,0.00039,14]
[371039230,1752195032681,-3000.0,0.00039,14]
[371039232,1752195032691,-3000.0,0.00039,14]
[371039234,1752195032700,-3000.0,0.00039,14]
[371039236,1752195032710,-3000.0,0.00039,14]
[371039238,1752195032720,-3000.0,0.00039,14]
[371039240,1752195032730,-3000.0,0.00039,14]
[371039242,1752195032740,-3000.0,0.00039,14]
[371039244,1752195032750,-3000.0,0.00039,14]
[371039246,1752195032759,-3000.0,0.00039,14]
[371039249,1752195032772,-199.27993961,0.00039,14]
[371039251,1752195032782,-229.0494,0.000391,2]
[371039253,1752195032791,-219.19,0.00039171,2]
[371039255,1752195032801,-812.81,0.00039181,2]
[371039257,1752195032810,-812.81,0.00039181,2]
[371039259,1752195032819,-753.07,0.00039181,2]
[371039260,1752195032828,-9038.25921675,0.000392,30]
[371039262,1752195032838,-619.22460867,0.00039221,7]
[371039264,1752195032847,-177.17,0.00039266,2]
[371039266,1752195032857,-512.0,0.00039296,8]
[371039268,1752195032867,-219.19,0.00039367,2]
[371039270,1752195032882,-32977.32,0.000395,120]
[371039272,1752195032892,-1000.0,0.000395,7]
[371039274,1752195032902,-219.19,0.00039563,2]
[371039276,1752195032912,-4009.68,0.000397,22]
[371039278,1752195032925,-219.19,0.0003976,2]
[371039280,1752195032935,-157.14299461,0.00039779,2]
[371039282,1752195032944,-560.93388141,0.00039789,50]
[371039284,1752195032954,-566.4358,0.0003979,2]
[371039285,1752195032963,-12027.8167,0.000398,2]
[371039287,1752195032973,-481.25117301,0.0003987,15]
[371039289,1752195032982,-2912.10724224,0.0003987,12]
[371039291,1752195032992,-159.72915,0.0003988,2]
[371039293,1752195033002,-545.98124373,0.0003988,15]
[371039295,1752195033011,-1403.7182,0.0003988,2]
[371039297,1752195033019,-545.98124372,0.00039881,15]
[371039299,1752195033028,-321.03574124,0.00039882,2]
[371039301,1752195033039,-545.98124372,0.00039882,15]
[371039303,1752195033049,-1000.0,0.00039889,2]
[371039304,1752195033059,-27545.36944013,0.00039889,2]
[371039307,1752195033073,-799.78915794,0.00039889,2]
[371039309,1752195033084,-5923.20100193,0.00039889,2]
[371039310,1752195033095,-2056.2246,0.0003989,2]
[371039311,1752195033106,-500.0,0.0003989,2]
[371039312,1752195033116,-5000.0,0.0003989,2]
[371039313,1752195033126,-164.19140861,0.000399,2]
[371039314,1752195033136,-4954.46631268,0.000399,2]
[371039315,1752195033146,-3000.0,0.000399,30]
[371039316,1752195033156,-190.4740654,0.000399,2]
[371039317,1752195033167,-291.1846465,0.000399,2]
[371039318,1752195033176,-565.00752704,0.000399,2]
[371039319,1752195033186,-161.33104862,0.000399,90]
[371039320,1752195033195,-151.93016442,0.00039931,2]
[371039321,1752195033205,-219.19,0.00039956,2]
[371039322,1752195033215,-3442.77494512,0.0003996,3]
[371039323,1752195033227,-999.45450291,0.0003996,3]
[371039324,1752195033285,-8487.1150338,0.0003996,3]
[371039325,1752195033296,-4317.39231469,0.0003996,3]
[371039326,1752195033307,-894.31286743,0.0003996,3]
[371039327,1752195033319,-1072.56398073,0.0003996,3]
[371039328,1752195033331,-1961.17643533,0.0003996,3]
[371039329,1752195033348,-1005.79713882,0.0003996,3]
[371039330,1752195033407,-456.74063776,0.0003996,3]
[371039331,1752195033419,-25749.1264602,0.0003996,3]
[371039332,1752195033556,-1712.25751305,0.0003996,3]
[371039333,1752195033569,-255.77049313,0.0003996,3]
[371039334,1752195033581,-373.26336855,0.0003996,3]
[371039335,1752195033594,-309.16048018,0.0003996,3]
[371039336,1752195033604,-790.49376958,0.00039962,3]
[371039337,1752195033615,-543.17006256,0.00039962,3]
[371039338,1752195033630,-24184.78925376,0.00039962,3]
[371039339,1752195033640,-5609.90372218,0.00039969,3]
[371039340,1752195033830,-639.16242228,0.00039969,3]
[371039341,1752195033888,-528.5143,0.00039969,3]
[371039342,1752195033900,-5546.95894496,0.00039969,3]
[371039343,1752195037387,-737.94291166,0.00034076,2]
[371039344,1752195037442,-442.91008834,0.00034076,2]
[371039345,1752195037452,-28762.24790163,0.00037288,2]
[371039346,1752195037462,-302.6390636,0.00038178,15]
[371039347,1752195037472,-500.0,0.00038178,7]
[371039348,1752195037482,-500.0,0.00038178,15]
[371039349,1752195037492,-500.0,0.00038178,15]
[371039350,1752195037501,-500.0,0.00038178,7]
[371039351,1752195037510,-500.0,0.00038178,15]
[371039352,1752195037519,-500.0,0.00038178,15]
[371039353,1752195037529,-290.87689309,0.00038178,7]
[371039354,1752195037538,-508.96399634,0.00038178,15]
[371039355,1752195037547,-247.674752,0.00038178,15]
[371039356,1752195037556,-2500.0,0.0003979,2]
[371039357,1752195037566,-245.20296883,0.00039869,2]
[371039358,1752195037575,-3279.76032728,0.000399,2]
[371039359,1752195037583,-13193.91369648,0.00039969,3]
[371039360,1752195037593,-25518.4530859,0.00039969,3]
[371039361,1752195037602,-151.0,0.0003997,14]
[371039362,1752195037610,-151.0,0.0003997,14]
[371039363,1752195037619,-200.03142,0.0003997,14]
[371039364,1752195037627,-151.0,0.0003997,14]
[371039365,1752195037635,-151.0,0.0003997,14]
[371039366,1752195037644,-151.0,0.0003997,14]
[371039367,1752195037653,-151.0,0.0003997,14]
[371039368,1752195037661,-151.0,0.0003997,14]
[371039369,1752195037670,-49214.42070418,0.0003997,3]
[371039370,1752195037751,-1822.48546752,0.0003997,3]
[371039371,1752195037759,-963.91486141,0.0003997,3]
[371039372,1752195037866,-553.25790877,0.0003997,3]
[371039373,1752195037976,-1450.49315492,0.0003997,3]
[371039374,1752195037987,-320.88,0.0003997,3]
[371039375,1752195038044,-307.06129998,0.00038178,2]
[371039376,1752195038053,-443.72772856,0.0003997,3]
[371039377,1752195038064,-18267.14317336,0.0003997,3]
[371039378,1752195038076,-2419.86900619,0.0003997,3]
[371039379,1752195038087,-3528.5203675,0.0003997,3]
[371039380,1752195038114,-359.82919109,0.0003997,3]
[371039381,1752195038123,-153.06,0.0003997,2]
[371039382,1752195038132,-151.0,0.00039972,14]
[371039384,1752195038141,-269.85437142,0.00039972,3]
[371039386,1752195038156,-1217.33691959,0.00039972,3]
[371039505,1752195039450,-2143.1969992,0.00039972,3]
[371039507,1752195039462,-1000.0,0.00039972,3]
[371039511,1752195039473,-1086.11000119,0.00039972,3]
[371039513,1752195039485,-252.95586131,0.00039972,3]
[371039515,1752195039497,-405.5767,0.00039972,3]
[371039518,1752195039516,-764.28629328,0.00039972,3]
[371039520,1752195039527,-4235.71370672,0.00039972,3]
[371039523,1752195039539,-23346.53929582,0.00039972,3]
[371039525,1752195039551,-1781.137005,0.00039972,3]
[371039527,1752195039562,-1363.68834929,0.00039972,3]
[371039529,1752195039574,-1328.92193566,0.00039972,3]
[371039532,1752195039586,-11841.58873322,0.00039972,3]
[371039534,1752195039596,-5642.81364435,0.00039972,3]
[371039536,1752195039607,-813.072159,0.00039972,3]
[371039538,1752195039618,-523.23606306,0.00039972,3]
[371039540,1752195039633,-1409.41316507,0.00039972,3]
[371039543,1752195039644,-2615.76075088,0.00039972,3]
[371039545,1752195039656,-487.52557497,0.00039972,3]
[371039558,1752195039771,-30969.63173027,0.00039972,3]
[371039560,1752195039781,-500.0,0.00039978,120]
[371039562,1752195039790,-420.0,0.00039978,120]
[371039564,1752195039800,-1000.0,0.00039979,2]
[371039566,1752195039810,-151.0,0.00039979,14]
[371039568,1752195039819,-151.0,0.00039979,14]
[371039570,1752195039828,-151.0,0.00039979,14]
[371039572,1752195039838,-151.0,0.00039979,14]
[371039574,1752195039847,-151.0,0.00039979,14]
[371039576,1752195039859,-151.0,0.00039979,14]
[371039578,1752195039869,-151.0,0.00039979,14]
[371039580,1752195039881,-151.0,0.00039979,14]
[371039582,1752195039890,-151.0,0.00039979,14]
[371039584,1752195039899,-151.0,0.00039979,14]
[371039586,1752195039908,-151.0,0.00039979,14]
[371039588,1752195039919,-151.0,0.00039979,14]
[371039590,1752195039929,-151.0,0.00039979,14]
[371039592,1752195039937,-165.772798,0.00039979,14]
[371039594,1752195039949,-25518.4530859,0.00039979,3]
[371039596,1752195039958,-42461.4530876,0.00039979,3]
[371039598,1752195039967,-150.0,0.00039979,2]
[371039600,1752195039977,-25518.4530859,0.0003998,3]